[Event "Late-Titled-Tuesday-Blitz-March-26-2024"]
[Site "Chess.com"]
[Date "2024.03.26"]
[Round "5"]
[White "TokChess"]
[Black "nj123456"]
[Result "0-1"]
[WhiteElo "2607"]
[BlackElo "2484"]
[TimeControl "180+1"]
[EndTime "14:58:01 PDT"]
[Termination "nj123456 won on time"]

1. c4 {[%clk 0:02:19.9]} 1... e6 {[%clk 0:02:58.8]} 2. g3 {[%clk 0:02:20.6]}
2... d5 {[%clk 0:02:59.3]} 3. Bg2 {[%clk 0:02:21.4]} 3... Nf6 {[%clk 0:02:59.2]}
4. Nf3 {[%clk 0:02:22.1]} 4... Be7 {[%clk 0:02:59.1]} 5. O-O {[%clk 0:02:22.8]}
5... O-O {[%clk 0:02:59.1]} 6. d4 {[%clk 0:02:23.4]} 6... dxc4 {[%clk
0:02:58.9]} 7. Qc2 {[%clk 0:02:22.9]} 7... a6 {[%clk 0:02:58.8]} 8. a4 {[%clk
0:02:22.7]} 8... Bd7 {[%clk 0:02:59.1]} 9. Qxc4 {[%clk 0:02:16.4]} 9... Bc6
{[%clk 0:02:59.1]} 10. Bg5 {[%clk 0:02:15.1]} 10... Nbd7 {[%clk 0:02:56.4]} 11.
Nc3 {[%clk 0:02:11.4]} 11... h6 {[%clk 0:02:54.6]} 12. Bxf6 {[%clk 0:02:11]}
12... Nxf6 {[%clk 0:02:52.7]} 13. Rfc1 {[%clk 0:01:56.7]} 13... a5 {[%clk
0:02:48.6]} 14. Rd1 {[%clk 0:01:44.6]} 14... Bxf3 {[%clk 0:02:46.4]} 15. Bxf3
{[%clk 0:01:43.4]} 15... c6 {[%clk 0:02:47.3]} 16. Rac1 {[%clk 0:01:40.5]} 16...
Qb6 {[%clk 0:02:46.5]} 17. Rb1 {[%clk 0:01:20.7]} 17... Rfd8 {[%clk 0:02:40.5]}
18. e3 {[%clk 0:01:21.1]} 18... Qb4 {[%clk 0:02:38]} 19. Be2 {[%clk 0:01:15.4]}
19... Nd5 {[%clk 0:02:35]} 20. Ne4 {[%clk 0:01:11.3]} 20... Nb6 {[%clk
0:02:28.3]} 21. Qxb4 {[%clk 0:01:07.9]} 21... axb4 {[%clk 0:02:26]} 22. b3
{[%clk 0:01:06.7]} 22... Nd5 {[%clk 0:02:26.1]} 23. Rbc1 {[%clk 0:01:02.5]}
23... f5 {[%clk 0:02:19.8]} 24. Nd2 {[%clk 0:01:02.8]} 24... Nc3 {[%clk
0:02:18.4]} 25. Re1 {[%clk 0:01:03.3]} 25... Bf6 {[%clk 0:02:15.2]} 26. Nc4
{[%clk 0:00:58.5]} 26... b5 {[%clk 0:02:06.3]} 27. axb5 {[%clk 0:00:59]} 27...
cxb5 {[%clk 0:02:07.2]} 28. Nb2 {[%clk 0:00:29.2]} 28... Ra2 {[%clk 0:02:05.4]}
29. Rc2 {[%clk 0:00:29.8]} 29... Ra3 {[%clk 0:01:52.5]} 30. Nd3 {[%clk
0:00:24.1]} 30... Rxb3 {[%clk 0:01:44.9]} 31. Nc5 {[%clk 0:00:24.3]} 31... Ra3
{[%clk 0:01:43.8]} 32. Nxe6 {[%clk 0:00:23.9]} 32... Rc8 {[%clk 0:01:36]} 33.
Nc5 {[%clk 0:00:22.7]} 33... Be7 {[%clk 0:01:30.3]} 34. Rb2 {[%clk 0:00:18.1]}
34... Bxc5 {[%clk 0:01:26.7]} 35. dxc5 {[%clk 0:00:19]} 35... b3 {[%clk
0:01:26.8]} 36. Bd1 {[%clk 0:00:12.9]} 36... Nxd1 {[%clk 0:01:23.4]} 37. Rxd1
{[%clk 0:00:13.8]} 37... Rxc5 {[%clk 0:01:23.7]} 38. Rd3 {[%clk 0:00:12.8]}
38... Kf7 {[%clk 0:01:12.1]} 39. Rdxb3 {[%clk 0:00:13.1]} 39... Rxb3 {[%clk
0:01:12.6]} 40. Rxb3 {[%clk 0:00:14]} 40... Ke6 {[%clk 0:01:13.1]} 41. h3 {[%clk
0:00:06.3]} 41... Kd5 {[%clk 0:01:13.1]} 42. g4 {[%clk 0:00:06.3]} 42... Kc4
{[%clk 0:01:10.8]} 43. Rb1 {[%clk 0:00:06.5]} 43... fxg4 {[%clk 0:01:08.2]} 44.
hxg4 {[%clk 0:00:07.2]} 44... b4 {[%clk 0:01:08.7]} 45. Kg2 {[%clk 0:00:07.6]}
45... b3 {[%clk 0:01:09.2]} 46. Kg3 {[%clk 0:00:08]} 46... Kc3 {[%clk 0:01:08]}
47. e4 {[%clk 0:00:08.4]} 47... Kc2 {[%clk 0:01:07.8]} 48. Re1 {[%clk 0:00:08]}
48... b2 {[%clk 0:01:06.6]} 49. Kf4 {[%clk 0:00:07.7]} 49... Kb3 {[%clk
0:01:03.5]} 50. Rb1 {[%clk 0:00:07.1]} 50... g5+ {[%clk 0:00:57.2]} 51. Ke3
{[%clk 0:00:06.3]} 51... Kc2 {[%clk 0:00:54.3]} 52. Re1 {[%clk 0:00:04.7]} 52...
b1=Q {[%clk 0:00:53.6]} 53. Rxb1 {[%clk 0:00:04.9]} 53... Kxb1 {[%clk
0:00:54.1]} 54. Kd4 {[%clk 0:00:05.8]} 54... Rc2 {[%clk 0:00:53.8]} 55. f3
{[%clk 0:00:04.8]} 55... Rf2 {[%clk 0:00:48.8]} 56. Ke3 {[%clk 0:00:04.3]} 56...
Rf1 {[%clk 0:00:47.4]} 57. e5 {[%clk 0:00:05.2]} 57... Kc2 {[%clk 0:00:46.7]}
58. Ke4 {[%clk 0:00:05.3]} 58... Kc3 {[%clk 0:00:45.9]} 59. e6 {[%clk
0:00:05.6]} 59... Re1+ {[%clk 0:00:39.3]} 60. Kf5 {[%clk 0:00:06]} 60... Kd4
{[%clk 0:00:39.9]} 61. Kf6 {[%clk 0:00:01.5]} 61... Kd5 {[%clk 0:00:40.1]} 62.
Kf7 {[%clk 0:00:01.3]} 62... Rxe6 {[%clk 0:00:39.6]} 0-1

[Event "Late-Titled-Tuesday-Blitz-March-26-2024"]
[Site "Chess.com"]
[Date "2024.03.26"]
[Round "5"]
[White "whiteglovethief"]
[Black "kai_nov"]
[Result "1-0"]
[WhiteElo "2491"]
[BlackElo "2340"]
[TimeControl "180+1"]
[EndTime "14:58:02 PDT"]
[Termination "whiteglovethief won by checkmate"]

1. d4 {[%clk 0:02:57]} 1... d5 {[%clk 0:02:59]} 2. c4 {[%clk 0:02:56.4]} 2... e6
{[%clk 0:02:58.6]} 3. Nf3 {[%clk 0:02:56.8]} 3... a6 {[%clk 0:02:52.8]} 4. Nbd2
{[%clk 0:02:54.2]} 4... c5 {[%clk 0:02:47.9]} 5. cxd5 {[%clk 0:02:51]} 5... cxd4
{[%clk 0:02:28]} 6. dxe6 {[%clk 0:02:42.8]} 6... Bxe6 {[%clk 0:02:28.9]} 7. g3
{[%clk 0:02:31.7]} 7... Nc6 {[%clk 0:02:25]} 8. Bg2 {[%clk 0:02:32.2]} 8... d3
{[%clk 0:02:17.4]} 9. O-O {[%clk 0:02:27]} 9... dxe2 {[%clk 0:02:13.2]} 10. Qxe2
{[%clk 0:02:27.9]} 10... Be7 {[%clk 0:02:12.5]} 11. Nb3 {[%clk 0:02:22.4]} 11...
Nf6 {[%clk 0:02:11.7]} 12. Rd1 {[%clk 0:02:21.3]} 12... Qc8 {[%clk 0:01:59.6]}
13. Nfd4 {[%clk 0:02:17.7]} 13... Bg4 {[%clk 0:01:54.4]} 14. f3 {[%clk
0:02:08.5]} 14... Nxd4 {[%clk 0:01:48.3]} 15. Nxd4 {[%clk 0:02:06.4]} 15... Be6
{[%clk 0:01:30.3]} 16. Nxe6 {[%clk 0:02:04.3]} 16... Qxe6 {[%clk 0:01:31]} 17.
Qxe6 {[%clk 0:02:03.9]} 17... fxe6 {[%clk 0:01:31.9]} 18. f4 {[%clk 0:02:03.2]}
18... Bc5+ {[%clk 0:01:24.4]} 19. Kf1 {[%clk 0:01:59.9]} 19... Rb8 {[%clk
0:01:02.9]} 20. Bh3 {[%clk 0:01:58.8]} 20... Kf7 {[%clk 0:00:58.2]} 21. Bd2
{[%clk 0:01:51.1]} 21... Nd5 {[%clk 0:00:38]} 22. Rac1 {[%clk 0:01:49.5]} 22...
Rbc8 {[%clk 0:00:33.7]} 23. Ke2 {[%clk 0:01:49.5]} 23... Bd4 {[%clk 0:00:28]}
24. Rxc8 {[%clk 0:01:30.2]} 24... Rxc8 {[%clk 0:00:28.9]} 25. Be1 {[%clk
0:01:29.7]} 25... Rc4 {[%clk 0:00:10.9]} 26. b3 {[%clk 0:01:24.4]} 26... Rc2+
{[%clk 0:00:10]} 27. Rd2 {[%clk 0:01:23.5]} 27... Rxd2+ {[%clk 0:00:09.8]} 28.
Bxd2 {[%clk 0:01:24.3]} 28... Bc3 {[%clk 0:00:10]} 29. Bg2 {[%clk 0:01:18.4]}
29... Bxd2 {[%clk 0:00:09.6]} 30. Kxd2 {[%clk 0:01:19.1]} 30... Ke7 {[%clk
0:00:08.8]} 31. Bxd5 {[%clk 0:01:18.5]} 31... exd5 {[%clk 0:00:09.4]} 32. Kc3
{[%clk 0:01:18.7]} 32... h5 {[%clk 0:00:08]} 33. Kd4 {[%clk 0:01:18.2]} 33...
Ke6 {[%clk 0:00:08]} 34. h3 {[%clk 0:01:17.6]} 34... g6 {[%clk 0:00:08.3]} 35.
g4 {[%clk 0:01:17.5]} 35... hxg4 {[%clk 0:00:09.2]} 36. hxg4 {[%clk 0:01:17.6]}
36... b6 {[%clk 0:00:09.4]} 37. a3 {[%clk 0:01:13.8]} 37... a5 {[%clk
0:00:08.5]} 38. a4 {[%clk 0:01:13.9]} 38... Kd6 {[%clk 0:00:08.1]} 39. f5 {[%clk
0:01:14.1]} 39... gxf5 {[%clk 0:00:07.7]} 40. gxf5 {[%clk 0:01:14.7]} 40... Kc6
{[%clk 0:00:06.8]} 41. f6 {[%clk 0:01:11.3]} 41... Kd6 {[%clk 0:00:07.7]} 42. f7
{[%clk 0:01:11.6]} 42... Ke7 {[%clk 0:00:08.1]} 43. Kxd5 {[%clk 0:01:12.3]}
43... Kxf7 {[%clk 0:00:08.6]} 44. Kc6 {[%clk 0:01:12.9]} 44... Ke7 {[%clk
0:00:08.4]} 45. Kxb6 {[%clk 0:01:12.6]} 45... Kd6 {[%clk 0:00:08.7]} 46. Kxa5
{[%clk 0:01:12.7]} 46... Kc7 {[%clk 0:00:09.6]} 47. Ka6 {[%clk 0:01:12.5]} 47...
Kb8 {[%clk 0:00:08.6]} 48. Kb6 {[%clk 0:01:12.8]} 48... Ka8 {[%clk 0:00:09.5]}
49. b4 {[%clk 0:01:13.1]} 49... Kb8 {[%clk 0:00:09.7]} 50. b5 {[%clk 0:01:13.5]}
50... Ka8 {[%clk 0:00:10.1]} 51. Kc7 {[%clk 0:01:13.7]} 51... Ka7 {[%clk
0:00:10.3]} 52. b6+ {[%clk 0:01:14]} 52... Ka6 {[%clk 0:00:10.8]} 53. b7 {[%clk
0:01:14.3]} 53... Ka5 {[%clk 0:00:10.5]} 54. b8=Q {[%clk 0:01:14.4]} 54... Ka6
{[%clk 0:00:02.8]} 55. Qb6# {[%clk 0:00:18.9]} 1-0

[Event "Late-Titled-Tuesday-Blitz-March-26-2024"]
[Site "Chess.com"]
[Date "2024.03.26"]
[Round "5"]
[White "Slovak_fighter2000"]
[Black "leandrojimenez"]
[Result "1-0"]
[WhiteElo "2599"]
[BlackElo "2421"]
[TimeControl "180+1"]
[EndTime "14:58:03 PDT"]
[Termination "Slovak_fighter2000 won on time"]

1. e4 {[%clk 0:02:59]} 1... e5 {[%clk 0:02:59.8]} 2. Nf3 {[%clk 0:02:59]} 2...
Nc6 {[%clk 0:03:00.6]} 3. Nc3 {[%clk 0:02:59]} 3... Nf6 {[%clk 0:02:59.1]} 4. d4
{[%clk 0:02:59.5]} 4... exd4 {[%clk 0:02:58.9]} 5. Nxd4 {[%clk 0:02:59.1]} 5...
Bb4 {[%clk 0:02:59.5]} 6. Nxc6 {[%clk 0:02:56.7]} 6... bxc6 {[%clk 0:02:59.1]}
7. Bd3 {[%clk 0:02:55.4]} 7... d5 {[%clk 0:02:54.5]} 8. exd5 {[%clk 0:02:56.3]}
8... O-O {[%clk 0:02:54.1]} 9. O-O {[%clk 0:02:54.5]} 9... cxd5 {[%clk 0:02:54]}
10. Bg5 {[%clk 0:02:49.5]} 10... Be7 {[%clk 0:02:40.4]} 11. h3 {[%clk
0:02:47.1]} 11... Be6 {[%clk 0:02:37.8]} 12. Qf3 {[%clk 0:02:46.2]} 12... c5
{[%clk 0:02:37.2]} 13. Rad1 {[%clk 0:02:41.8]} 13... d4 {[%clk 0:02:04.9]} 14.
Ne4 {[%clk 0:02:27.6]} 14... Nxe4 {[%clk 0:01:59.8]} 15. Qxe4 {[%clk 0:02:27.1]}
15... g6 {[%clk 0:01:52.8]} 16. Bxe7 {[%clk 0:02:21.9]} 16... Qxe7 {[%clk
0:01:53.1]} 17. Bc4 {[%clk 0:02:18]} 17... Qf6 {[%clk 0:01:47.1]} 18. Bxe6
{[%clk 0:02:14.4]} 18... fxe6 {[%clk 0:01:48]} 19. f4 {[%clk 0:02:10.7]} 19...
Rab8 {[%clk 0:01:27.7]} 20. b3 {[%clk 0:02:02.3]} 20... Qf5 {[%clk 0:01:26.9]}
21. Rfe1 {[%clk 0:01:54.8]} 21... Qxf4 {[%clk 0:01:22.6]} 22. Qxf4 {[%clk
0:01:55.7]} 22... Rxf4 {[%clk 0:01:22.2]} 23. Rxe6 {[%clk 0:01:55.8]} 23... c4
{[%clk 0:01:21.1]} 24. Re7 {[%clk 0:01:47.1]} 24... cxb3 {[%clk 0:01:19.5]} 25.
axb3 {[%clk 0:01:41.7]} 25... Rc8 {[%clk 0:01:19.3]} 26. Rd2 {[%clk 0:01:36.6]}
26... a5 {[%clk 0:01:13.5]} 27. Re5 {[%clk 0:01:32.3]} 27... Ra8 {[%clk
0:00:43.3]} 28. Rd5 {[%clk 0:01:22.6]} 28... a4 {[%clk 0:00:43.5]} 29. R5xd4
{[%clk 0:01:14.1]} 29... Rxd4 {[%clk 0:00:27.9]} 30. Rxd4 {[%clk 0:01:15]} 30...
axb3 {[%clk 0:00:28.6]} 31. cxb3 {[%clk 0:01:15]} 31... Ra2 {[%clk 0:00:28.5]}
32. Rd8+ {[%clk 0:01:12.5]} 32... Kg7 {[%clk 0:00:27]} 33. Rd7+ {[%clk
0:01:10.4]} 33... Kh6 {[%clk 0:00:24.5]} 34. Rb7 {[%clk 0:01:07.7]} 34... Rb2
{[%clk 0:00:24.3]} 35. Kh2 {[%clk 0:01:07.7]} 35... Kg5 {[%clk 0:00:23.4]} 36.
Kg3 {[%clk 0:01:07.9]} 36... h5 {[%clk 0:00:23.8]} 37. Kf3 {[%clk 0:01:07.6]}
37... h4 {[%clk 0:00:23.6]} 38. b4 {[%clk 0:01:07.2]} 38... Rb3+ {[%clk
0:00:23.2]} 39. Kf2 {[%clk 0:01:05.1]} 39... Kf4 {[%clk 0:00:22.2]} 40. Rf7+
{[%clk 0:01:00.7]} 40... Kg5 {[%clk 0:00:18.9]} 41. Rb7 {[%clk 0:00:59.6]} 41...
Kf4 {[%clk 0:00:19]} 42. Rg7 {[%clk 0:00:40]} 42... Rb2+ {[%clk 0:00:16.4]} 43.
Kg1 {[%clk 0:00:36]} 43... g5 {[%clk 0:00:15.3]} 44. Rf7+ {[%clk 0:00:35.8]}
44... Ke5 {[%clk 0:00:11.2]} 45. Rb7 {[%clk 0:00:34]} 45... Kf4 {[%clk
0:00:11.1]} 46. Kh2 {[%clk 0:00:34.5]} 46... Ke3 {[%clk 0:00:06.2]} 47. Rb5
{[%clk 0:00:31.5]} 47... Kf4 {[%clk 0:00:06.2]} 48. Rb8 {[%clk 0:00:29.9]} 48...
Ke3 {[%clk 0:00:05.7]} 49. b5 {[%clk 0:00:29.5]} 49... Kd4 {[%clk 0:00:03.5]}
50. b6 {[%clk 0:00:29]} 50... Kc5 {[%clk 0:00:02.2]} 51. Rg8 {[%clk 0:00:27.3]}
51... Rxb6 {[%clk 0:00:01.5]} 52. Rxg5+ {[%clk 0:00:27.3]} 1-0

[Event "Late-Titled-Tuesday-Blitz-March-26-2024"]
[Site "Chess.com"]
[Date "2024.03.26"]
[Round "5"]
[White "Xavier_mompel"]
[Black "HelenaWalker2912"]
[Result "0-1"]
[WhiteElo "2344"]
[BlackElo "2497"]
[TimeControl "180+1"]
[EndTime "14:58:06 PDT"]
[Termination "HelenaWalker2912 won by resignation"]

1. e4 {[%clk 0:02:55.3]} 1... c6 {[%clk 0:02:59.8]} 2. d4 {[%clk 0:02:52.1]}
2... d5 {[%clk 0:03:00]} 3. Nc3 {[%clk 0:02:52.3]} 3... dxe4 {[%clk 0:03:00.2]}
4. Nxe4 {[%clk 0:02:52]} 4... Nf6 {[%clk 0:03:00.9]} 5. Nxf6+ {[%clk 0:02:52.6]}
5... exf6 {[%clk 0:03:01.8]} 6. c3 {[%clk 0:02:52.8]} 6... Bd6 {[%clk
0:03:02.1]} 7. Bd3 {[%clk 0:02:53.2]} 7... O-O {[%clk 0:03:02.3]} 8. Qc2 {[%clk
0:02:53.7]} 8... Re8+ {[%clk 0:03:02.7]} 9. Ne2 {[%clk 0:02:54.4]} 9... h5
{[%clk 0:03:03]} 10. Be3 {[%clk 0:02:54.9]} 10... Nd7 {[%clk 0:03:03.2]} 11. c4
{[%clk 0:02:55.4]} 11... Nf8 {[%clk 0:03:01]} 12. O-O-O {[%clk 0:02:54.4]} 12...
Be6 {[%clk 0:03:00.9]} 13. Kb1 {[%clk 0:02:54.1]} 13... Rc8 {[%clk 0:03:00.4]}
14. Ng3 {[%clk 0:02:31.1]} 14... b5 {[%clk 0:02:47.7]} 15. c5 {[%clk 0:02:08.9]}
15... Bb8 {[%clk 0:02:38.8]} 16. Be4 {[%clk 0:02:07.5]} 16... Qd7 {[%clk
0:01:50]} 17. h3 {[%clk 0:02:03.4]} 17... Bxg3 {[%clk 0:01:38.4]} 18. fxg3
{[%clk 0:02:04.3]} 18... f5 {[%clk 0:01:34]} 19. Bf3 {[%clk 0:01:53.7]} 19...
Bxa2+ {[%clk 0:01:26.7]} 20. Kxa2 {[%clk 0:01:53.2]} 20... Rxe3 {[%clk
0:01:27.3]} 21. d5 {[%clk 0:01:33.7]} 21... cxd5 {[%clk 0:01:20]} 22. Rxd5
{[%clk 0:01:34.6]} 22... Qe6 {[%clk 0:01:20.6]} 23. Qxf5 {[%clk 0:01:33.2]}
23... Rxc5 {[%clk 0:01:16.5]} 24. Qxe6 {[%clk 0:01:23.9]} 24... Nxe6 {[%clk
0:01:17.4]} 25. Rxc5 {[%clk 0:01:20.5]} 25... Nxc5 {[%clk 0:01:18.3]} 26. Rc1
{[%clk 0:01:18.5]} 26... Nd3 {[%clk 0:01:12.7]} 27. Rc8+ {[%clk 0:01:16.6]}
27... Kh7 {[%clk 0:01:12.7]} 28. Rc3 {[%clk 0:01:04.9]} 28... g6 {[%clk
0:00:52.8]} 29. Kb1 {[%clk 0:00:53.9]} 29... b4 {[%clk 0:00:36]} 30. Rb3 {[%clk
0:00:38.1]} 30... a5 {[%clk 0:00:30.5]} 31. Bc6 {[%clk 0:00:31.1]} 31... Kg7
{[%clk 0:00:16.4]} 32. Bb5 {[%clk 0:00:23.2]} 32... Re1+ {[%clk 0:00:14]} 33.
Kc2 {[%clk 0:00:23.3]} 33... Nc5 {[%clk 0:00:12.5]} 34. Rf3 {[%clk 0:00:23.1]}
34... f5 {[%clk 0:00:06.7]} 35. b3 {[%clk 0:00:19]} 35... Rg1 {[%clk 0:00:04.6]}
36. Rf2 {[%clk 0:00:06]} 36... Ne4 {[%clk 0:00:04.5]} 37. Re2 {[%clk 0:00:04.1]}
37... Nxg3 {[%clk 0:00:04.4]} 38. Rd2 {[%clk 0:00:03]} 38... Ne4 {[%clk
0:00:04.1]} 39. Rd7+ {[%clk 0:00:03.3]} 39... Kh6 {[%clk 0:00:04.4]} 40. Bc4
{[%clk 0:00:01.6]} 40... Rxg2+ {[%clk 0:00:04.4]} 41. Kd1 {[%clk 0:00:02]} 41...
Nc3+ {[%clk 0:00:03.8]} 42. Ke1 {[%clk 0:00:02.1]} 42... Rg3 {[%clk 0:00:04.4]}
43. Kf2 {[%clk 0:00:02.2]} 43... h4 {[%clk 0:00:04.7]} 44. Rd6 {[%clk
0:00:01.9]} 44... Rxh3 {[%clk 0:00:04.9]} 45. Rc6 {[%clk 0:00:02.2]} 45... Rg3
{[%clk 0:00:05.1]} 46. Ra6 {[%clk 0:00:01.7]} 46... Ne4+ {[%clk 0:00:05.1]} 47.
Kf1 {[%clk 0:00:01.5]} 47... h3 {[%clk 0:00:05.2]} 48. Bf7 {[%clk 0:00:01.6]}
48... h2 {[%clk 0:00:05]} 49. Rxg6+ {[%clk 0:00:01.7]} 49... Rxg6 {[%clk
0:00:05.1]} 50. Bxg6 {[%clk 0:00:02.6]} 50... Kxg6 {[%clk 0:00:05.9]} 51. Kg2
{[%clk 0:00:03.5]} 51... Kf6 {[%clk 0:00:06.4]} 52. Kxh2 {[%clk 0:00:03.7]}
52... Ke5 {[%clk 0:00:07.3]} 0-1

[Event "Late-Titled-Tuesday-Blitz-March-26-2024"]
[Site "Chess.com"]
[Date "2024.03.26"]
[Round "5"]
[White "Shahdad2007"]
[Black "Quattroporte300"]
[Result "0-1"]
[WhiteElo "2622"]
[BlackElo "2493"]
[TimeControl "180+1"]
[EndTime "14:58:07 PDT"]
[Termination "Quattroporte300 won on time"]

1. Nf3 {[%clk 0:03:00.9]} 1... c5 {[%clk 0:02:59.6]} 2. g3 {[%clk 0:02:55.9]}
2... d5 {[%clk 0:02:59.5]} 3. Bg2 {[%clk 0:02:54.6]} 3... Nc6 {[%clk 0:03:00]}
4. d4 {[%clk 0:02:53.8]} 4... cxd4 {[%clk 0:02:59.8]} 5. Nxd4 {[%clk 0:02:54.7]}
5... Nf6 {[%clk 0:02:59.4]} 6. O-O {[%clk 0:02:50.7]} 6... e5 {[%clk 0:02:58.8]}
7. Nxc6 {[%clk 0:02:50.1]} 7... bxc6 {[%clk 0:02:59.7]} 8. c4 {[%clk 0:02:50.4]}
8... Be6 {[%clk 0:02:59.6]} 9. Nc3 {[%clk 0:02:47.4]} 9... h6 {[%clk 0:02:56.5]}
10. Qa4 {[%clk 0:02:45.1]} 10... Qd7 {[%clk 0:02:54.8]} 11. Rd1 {[%clk
0:02:33.1]} 11... Rd8 {[%clk 0:02:52.7]} 12. Be3 {[%clk 0:02:27]} 12... Be7
{[%clk 0:02:45.1]} 13. cxd5 {[%clk 0:01:05.3]} 13... cxd5 {[%clk 0:02:44.7]} 14.
Qxd7+ {[%clk 0:01:04.6]} 14... Rxd7 {[%clk 0:02:43.4]} 15. Na4 {[%clk
0:00:57.9]} 15... O-O {[%clk 0:02:34.2]} 16. Bc5 {[%clk 0:00:57.6]} 16... Rc8
{[%clk 0:02:29.3]} 17. Rac1 {[%clk 0:00:56.3]} 17... Rdc7 {[%clk 0:02:24.3]} 18.
b4 {[%clk 0:00:55.8]} 18... d4 {[%clk 0:02:08.9]} 19. Ra1 {[%clk 0:00:42.2]}
19... Kf8 {[%clk 0:02:01.4]} 20. f4 {[%clk 0:00:33]} 20... exf4 {[%clk
0:01:49.6]} 21. gxf4 {[%clk 0:00:32.8]} 21... Bxc5 {[%clk 0:01:37]} 22. Nxc5
{[%clk 0:00:32.3]} 22... Rd8 {[%clk 0:01:37.3]} 23. Rd2 {[%clk 0:00:29.6]} 23...
Nh5 {[%clk 0:01:21.7]} 24. Rf1 {[%clk 0:00:21.5]} 24... Ke7 {[%clk 0:01:20.4]}
25. f5 {[%clk 0:00:20.2]} 25... Bc8 {[%clk 0:01:15.1]} 26. Rfd1 {[%clk
0:00:17.6]} 26... Nf4 {[%clk 0:01:03.5]} 27. Bf3 {[%clk 0:00:18]} 27... d3
{[%clk 0:00:48.4]} 28. Nxd3 {[%clk 0:00:17.5]} 28... Nxd3 {[%clk 0:00:45.9]} 29.
Rxd3 {[%clk 0:00:17.4]} 29... Rxd3 {[%clk 0:00:46.5]} 30. Rxd3 {[%clk 0:00:17]}
30... Bxf5 {[%clk 0:00:47.1]} 31. Rd2 {[%clk 0:00:16.7]} 31... Rc4 {[%clk
0:00:43]} 32. Rb2 {[%clk 0:00:16.3]} 32... Kd6 {[%clk 0:00:40]} 33. Kf2 {[%clk
0:00:15.5]} 33... Rh4 {[%clk 0:00:38.8]} 34. Kg3 {[%clk 0:00:15.1]} 34... Rc4
{[%clk 0:00:39]} 35. a4 {[%clk 0:00:15.1]} 35... g5 {[%clk 0:00:35]} 36. a5
{[%clk 0:00:14.4]} 36... Rc2 {[%clk 0:00:14.9]} 37. Rb3 {[%clk 0:00:09.7]} 37...
Be6 {[%clk 0:00:14.1]} 38. Rd3+ {[%clk 0:00:09.4]} 38... Kc7 {[%clk 0:00:14.7]}
39. b5 {[%clk 0:00:06.4]} 39... Rc5 {[%clk 0:00:11.4]} 40. b6+ {[%clk
0:00:01.6]} 40... axb6 {[%clk 0:00:11.6]} 41. a6 {[%clk 0:00:02.1]} 41... Ra5
{[%clk 0:00:05.4]} 42. Rc3+ {[%clk 0:00:02.5]} 42... Kb8 {[%clk 0:00:06]} 43.
Bb7 {[%clk 0:00:02.3]} 43... b5 {[%clk 0:00:03.7]} 44. Rc5 {[%clk 0:00:01.7]}
44... Ka7 {[%clk 0:00:03.2]} 45. Kf2 {[%clk 0:00:01.2]} 45... Kb6 {[%clk
0:00:03.7]} 46. Rc6+ {[%clk 0:00:01.5]} 46... Ka7 {[%clk 0:00:03.7]} 0-1

[Event "Late-Titled-Tuesday-Blitz-March-26-2024"]
[Site "Chess.com"]
[Date "2024.03.26"]
[Round "5"]
[White "Oleksandr_Bortnyk"]
[Black "DrVelja"]
[Result "0-1"]
[WhiteElo "3047"]
[BlackElo "3020"]
[TimeControl "180+1"]
[EndTime "14:58:08 PDT"]
[Termination "DrVelja won on time"]

1. e4 {[%clk 0:02:55.5]} 1... c5 {[%clk 0:02:59.2]} 2. c3 {[%clk 0:02:53.3]}
2... Nf6 {[%clk 0:02:56.2]} 3. e5 {[%clk 0:02:53]} 3... Nd5 {[%clk 0:02:56.9]}
4. d4 {[%clk 0:02:53]} 4... cxd4 {[%clk 0:02:57.1]} 5. Nf3 {[%clk 0:02:53.1]}
5... d6 {[%clk 0:02:53.8]} 6. cxd4 {[%clk 0:02:50.6]} 6... Nc6 {[%clk
0:02:51.2]} 7. Bc4 {[%clk 0:02:46.5]} 7... Nb6 {[%clk 0:02:50.8]} 8. Bb5 {[%clk
0:02:46.4]} 8... dxe5 {[%clk 0:02:50.4]} 9. Nxe5 {[%clk 0:02:47.3]} 9... Bd7
{[%clk 0:02:50.8]} 10. Nxd7 {[%clk 0:02:47.7]} 10... Qxd7 {[%clk 0:02:51.7]} 11.
O-O {[%clk 0:02:46.2]} 11... e6 {[%clk 0:02:50]} 12. Nc3 {[%clk 0:02:46.4]}
12... Rd8 {[%clk 0:02:50.4]} 13. Be3 {[%clk 0:02:40.9]} 13... Be7 {[%clk
0:02:26.1]} 14. Qg4 {[%clk 0:02:40.1]} 14... O-O {[%clk 0:02:26.5]} 15. Rfd1
{[%clk 0:02:38.9]} 15... Nd5 {[%clk 0:02:23.9]} 16. Bh6 {[%clk 0:02:18.8]} 16...
Bf6 {[%clk 0:02:24.3]} 17. Ne4 {[%clk 0:02:19.1]} 17... Qe7 {[%clk 0:02:25]} 18.
Bxc6 {[%clk 0:02:19.1]} 18... bxc6 {[%clk 0:02:24.1]} 19. h3 {[%clk 0:02:19.1]}
19... Rb8 {[%clk 0:02:09.9]} 20. b3 {[%clk 0:01:54.8]} 20... Kh8 {[%clk
0:02:09.3]} 21. Nxf6 {[%clk 0:01:46.6]} 21... Qxf6 {[%clk 0:02:10.2]} 22. Bg5
{[%clk 0:01:47]} 22... Qg6 {[%clk 0:02:10]} 23. Rac1 {[%clk 0:01:47.2]} 23... f5
{[%clk 0:01:48.1]} 24. Qh4 {[%clk 0:01:37.4]} 24... f4 {[%clk 0:01:47.8]} 25.
Rxc6 {[%clk 0:01:09.3]} 25... h6 {[%clk 0:01:43.6]} 26. Be7 {[%clk 0:01:08.6]}
26... f3 {[%clk 0:01:43.8]} 27. g3 {[%clk 0:01:01.4]} 27... Rf4 {[%clk
0:01:41.7]} 28. g4 {[%clk 0:00:41.2]} 28... Re8 {[%clk 0:00:29.3]} 29. Bd6
{[%clk 0:00:30.5]} 29... Re4 {[%clk 0:00:26.1]} 30. Be5 {[%clk 0:00:26.1]} 30...
Kh7 {[%clk 0:00:15.5]} 31. Kh2 {[%clk 0:00:24.5]} 31... Re2 {[%clk 0:00:15.4]}
32. Qg3 {[%clk 0:00:20.6]} 32... Rf8 {[%clk 0:00:15.2]} 33. Rdc1 {[%clk
0:00:19.6]} 33... Qd3 {[%clk 0:00:11.2]} 34. Rxe6 {[%clk 0:00:17.1]} 34... Qd2
{[%clk 0:00:10.8]} 35. Rf1 {[%clk 0:00:17.4]} 35... Ne3 {[%clk 0:00:10.7]} 36.
Rg1 {[%clk 0:00:08.1]} 36... Rxf2+ {[%clk 0:00:11.2]} 37. Kh1 {[%clk 0:00:09]}
37... Nf1 {[%clk 0:00:11.6]} 38. Qxf2 {[%clk 0:00:01.8]} 38... Qxf2 {[%clk
0:00:11.7]} 39. Re7 {[%clk 0:00:02.4]} 39... Rg8 {[%clk 0:00:10.6]} 40. g5
{[%clk 0:00:02.7]} 40... hxg5 {[%clk 0:00:06.7]} 41. Rxg5 {[%clk 0:00:03.6]}
41... Kh6 {[%clk 0:00:04]} 42. Rg4 {[%clk 0:00:02.5]} 42... g5 {[%clk
0:00:01.9]} 43. h4 {[%clk 0:00:01.7]} 43... Kh5 {[%clk 0:00:02.2]} 44. Rg1
{[%clk 0:00:01.3]} 44... g4 {[%clk 0:00:02.7]} 0-1